[Event "Stay Safe Play From Home 129"]
[Site "T#645801Emanuel Laske"]
[Date "2020.05.07"]
[Round "3"]
[White "Edmatuag"]
[Black "PRW64MS"]
[Result "1-0"]
[WhiteElo "1594"]
[BlackElo "1482"]
[Annotator "NA"]
[PlyCount "53"]
[EventDate "2020.05.07"]
[EventType "swiss (blitz)"]
[TimeControl "60"]

1. e4 {[%emt 0:00:02]} c5 {[%emt 0:00:01]} 2. Nf3 {[%emt 0:00:00]} Nc6 {[%emt 0:00:02]} 3. Bc4 {[%emt 0:00:01]} e6 {[%emt 0:00:02]} 4. O-O {[%emt 0:00:01]} d5 {[%emt 0:00:01]} 5. exd5 {[%emt 0:00:03]} exd5 {[%emt 0:00:00]} 6. Bb5 {[%emt 0:00:01]} Nf6 {[%emt 0:00:01]} 7. Re1+ {[%emt 0:00:01]} Be7 {[%emt 0:00:01]} 8. Qe2 {[%emt 0:00:01]} Be6 {[%emt 0:00:03]} 9. Ng5 {[%emt 0:00:02]} Qd7 {[%emt 0:00:04]} 10. Nxe6 {[%emt 0:00:02]} Qxe6 {[%emt 0:00:01]} 11. Qxe6 {[%emt 0:00:00]} fxe6 {[%emt 0:00:01]} 12. Rxe6 {[%emt 0:00:01]} Kd7 {[%emt 0:00:00]} 13. Re1 {[%emt 0:00:04]} Bd6 {[%emt 0:00:01]} 14. Nc3 {[%emt 0:00:01]} a6 {[%emt 0:00:04]} 15. Bxc6+ {[%emt 0:00:01]} bxc6 {[%emt 0:00:01]} 16. d3 {[%emt 0:00:00]} Ng4 {[%emt 0:00:01]} 17. g3 {[%emt 0:00:04]} Rhf8 {[%emt 0:00:03]} 18. Bg5 {[%emt 0:00:03]} Nxf2 {[%emt 0:00:04]} 19. Be3 {[%emt 0:00:04]} Nh3+ {[%emt 0:00:02]} 20. Kg2 {[%emt 0:00:01]} Rf6 {[%emt 0:00:17]} 21. Kxh3 {[%emt 0:00:03]} Raf8 {[%emt 0:00:03]} 22. Rg1 {[%emt 0:00:05]} h5 {[%emt 0:00:03]} 23. Ne2 {[%emt 0:00:03]} d4 {[%emt 0:00:01]} 24. Bf4 {[%emt 0:00:01]} Bxf4 {[%emt 0:00:02]} 25. Nxf4 {[%emt 0:00:01]} g5 {[%emt 0:00:01]} 26. Nxh5 {[%emt 0:00:01]} Rh6 {[%emt 0:00:01]} 27. g4 {[%emt 0:00:01] Zeit (Lag: Av=1.00s, max=8.7s)} 1-0